bitfinex/quotes_ETHUSD_20260129
["timestamp","ask_amount","ask_price","bid_price","bid_amount"]
[1769650713287,0.001,2996.3,2995.4,4.44073691]
[1769650714364,0.001,2996.1,2995.7,3.55625599]
[1769650714569,0.001,2996.1,2995.8,3.91686837]
[1769650714765,0.001,2996.1,2995.9,0.699]
[1769650714996,0.834084,2997.3,2995.9,4.25525599]
[1769650715165,0.66925407,2997.3,2995.9,4.25525599]
[1769650715669,4.29370801,2997.4,2996.1,3.55625599]
[1769650715869,3.45964976,2997.4,2996.2,3.91686837]
[1769650716097,4.29370852,2997.4,2996.3,0.83436238]
[1769650716298,4.29370955,2997.4,2996.3,0.83436238]
[1769650716875,4.29370955,2997.4,2996.2,4.75123845]
[1769650717078,4.29370955,2997.4,2996.3,0.80888711]
[1769650717674,0.001,2997.7,2996.4,3.55625599]
[1769650717885,0.83499377,2997.7,2996.4,3.55625599]
[1769650718173,3.45964976,2997.5,2995.8,0.36061238]
[1769650718378,3.45964976,2997.5,2996.2,0.83438573]
[1769650718593,3.45964976,2997.5,2996.2,0.83437355]
[1769650718798,3.45964976,2997.5,2996.4,0.83432822]
[1769650719203,3.45964976,2997.5,2996.2,6.89381487]
[1769650719204,3.45964976,2997.5,2996.2,4.3906234]
[1769650719519,3.45964976,2997.5,2996.3,1.60718917]
[1769650719520,3.80571474,2997.5,2996.3,1.60718917]
[1769650719677,3.80571474,2997.5,2996.4,0.83432428]
[1769650720182,0.83405618,2997.4,2996.3,1.60717311]
[1769650720588,4.29370594,2997.4,2996.3,1.60717311]
[1769650721207,4.29370594,2997.4,2996.3,0.77282892]
[1769650721510,4.29370594,2997.4,2996.4,0.51634591]
[1769650722478,4.29370594,2997.4,2996.3,0.77282892]
[1769650722705,4.29370594,2997.4,2996.2,0.83437456]
[1769650723012,4.29370594,2997.4,2996.2,0.83438787]
[1769650723308,4.29370594,2997.4,2996.0,3.33774949]
[1769650723505,4.29370594,2997.4,2996.2,0.83438921]
[1769650724394,4.29370594,2997.4,2996.0,3.33774949]
[1769650724600,4.29370594,2997.4,2996.1,1.51101382]
[1769650725111,4.29370594,2997.4,2996.1,5.06726981]
[1769650725487,0.83405618,2997.4,2996.2,3.55625599]
[1769650725687,3.33622472,2997.6,2996.2,3.55625599]
[1769650725688,0.83401515,2997.6,2996.2,3.55625599]
[1769650725882,0.83401515,2997.6,2996.4,3.55625599]
[1769650726077,0.001,2997.7,2996.4,3.55625599]
[1769650726306,0.001,2997.7,2996.4,3.60812384]
[1769650726511,0.001,2997.7,2996.6,3.60612384]
[1769650726690,0.001,2998.0,2996.8,3.55625599]
[1769650727910,0.001,2998.2,2997.0,3.55625599]
[1769650728112,0.001,2998.2,2997.2,3.55625599]
[1769650729013,0.001,2998.2,2997.3,4.39033999]
[1769650729217,0.001,2998.2,2997.4,0.699]
[1769650729390,0.001,2998.2,2997.5,0.508934]
[1769650729584,0.001,2998.2,2997.4,0.699]
[1769650731114,0.001,2998.2,2997.1,0.83413966]
[1769650731316,0.001,2998.2,2997.2,0.699]
[1769650731612,0.001,2998.2,2997.1,4.39039565]
[1769650731818,0.001,2998.2,2997.2,0.699]
[1769650732111,3.46064976,2998.2,2997.2,0.699]
[1769650732312,3.89009254,2998.2,2997.2,1.18597055]
[1769650732520,3.89009254,2998.2,2997.1,0.83413966]
[1769650732714,3.89009254,2998.2,2996.8,7.35625599]
[1769650733016,3.89009254,2998.2,2996.7,0.44404305]
[1769650733197,3.89009254,2998.2,2996.6,1.53326908]
[1769650733402,3.45964976,2998.0,2996.6,1.53326908]
[1769650733992,3.45964976,2998.0,2996.6,0.699]
[1769650734192,3.45964976,2998.0,2996.4,1.535334]
[1769650734830,3.45964976,2998.0,2996.5,0.83430496]
[1769650734996,3.50596559,2997.8,2996.5,0.83430496]
[1769650735191,3.50596559,2997.8,2996.6,0.83427382]
[1769650735429,0.83397271,2997.7,2996.6,3.5648191]
[1769650735626,0.83396428,2997.8,2996.6,3.5648191]
[1769650735824,0.83396428,2997.8,2996.7,4.25502032]
[1769650736816,3.33556106,2998.0,2996.7,4.25502032]
[1769650737821,3.33556106,2998.0,2996.8,0.83422317]
[1769650738404,3.33656106,2998.0,2996.8,0.83422317]
[1769650738599,3.33656106,2998.0,2996.9,0.84281381]
[1769650739892,3.50596559,2997.9,2996.9,0.84281381]
[1769650740111,3.50596559,2997.9,2996.7,0.701]
[1769650741018,3.50596559,2997.9,2996.7,0.002]
[1769650742430,3.50596559,2997.7,2996.7,0.002]
[1769650744529,4.33996612,2997.6,2996.7,0.002]
[1769650745329,3.50596559,2997.5,2996.7,0.002]
[1769650745823,1.93519757,2997.6,2996.7,0.002]
[1769650746030,4.33991269,2997.8,2996.7,3.5668191]
[1769650746505,4.33991269,2997.8,2996.7,4.40105414]
[1769650747025,4.33991269,2997.8,2996.7,3.5668191]
[1769650747327,4.33991269,2997.8,2996.7,0.002]
[1769650747525,3.50596559,2997.6,2996.7,0.002]
[1769650748108,3.50596559,2997.6,2996.7,0.83624723]
[1769650748313,0.8339471,2997.8,2996.7,4.40106633]
[1769650750136,0.001,2998.0,2996.9,3.5648191]
[1769650750331,0.001,2998.2,2997.1,3.5648191]
[1769650750629,0.001,2998.2,2997.4,0.83405618]
[1769650750932,0.001,2998.2,2997.5,0.699]
[1769650751718,0.001,2998.2,2997.5,4.2638191]
[1769650751927,0.001,2998.2,2997.6,0.699]
[1769650752108,0.001,2998.2,2997.7,0.42638191]
[1769650753351,3.50596559,2999.3,2997.8,4.39876399]
[1769650753941,3.50596559,2999.3,2997.8,18.89876399]
[1769650755911,3.50596559,2999.3,2997.9,0.04986785]
[1769650756214,0.001,2999.7,2998.1,3.5648191]
[1769650756718,0.83442534,2999.7,2998.3,3.5648191]
[1769650756932,4.34039093,2999.7,2998.4,0.699]
[1769650757232,4.34039093,2999.7,2998.5,0.699]
[1769650757549,3.55583344,2999.5,2998.0,1.46089419]
[1769650757753,0.04986785,2999.1,2997.4,3.5648191]
[1769650757915,0.833639,2998.9,2997.5,5.53300834]
[1769650758114,3.50596559,2998.8,2997.5,1.53300834]
[1769650758339,4.27338165,2998.8,2997.6,0.48692132]
[1769650758749,0.833639,2998.9,2997.6,4.05174042]
[1769650758939,0.83352782,2999.3,2997.6,4.05174042]
[1769650759428,4.33949341,2999.3,2997.6,4.05174042]
[1769650759631,3.50596559,2999.0,2997.6,0.48692132]
[1769650759958,3.50596559,2998.6,2997.5,0.37344596]
[1769650760161,4.33971579,2998.5,2997.5,0.37344596]
[1769650760866,4.33971579,2998.5,2997.5,1.20747187]
[1769650761167,5.44567432,2998.5,2997.5,1.66185252]
[1769650762018,5.44567432,2998.5,2997.5,0.82782661]
[1769650762230,0.001,2998.3,2997.5,1.66185405]
[1769650763048,0.001,2998.3,2997.5,0.82782661]
[1769650763963,3.50596559,2998.1,2997.0,0.3614687]
[1769650764161,3.50596559,2998.1,2996.9,0.002]
[1769650764162,3.50596559,2997.9,2996.9,0.002]
[1769650766213,0.83394489,2997.8,2996.9,0.002]
[1769650766857,0.83394489,2997.8,2996.9,3.78457385]
[1769650767488,0.83394489,2997.8,2996.9,0.002]
[1769650767659,3.84374628,2997.7,2996.9,0.002]
[1769650768962,0.83400053,2997.6,2996.9,0.002]
[1769650770403,4.47912063,2997.6,2996.6,0.002]
[1769650771910,3.59525225,2997.3,2996.6,0.002]
[1769650772107,4.00963211,2997.2,2996.1,0.002]
[1769650772354,3.6451201,2997.2,2996.1,0.002]
[1769650773301,4.42939191,2997.1,2996.1,0.002]
[1769650773804,4.42939191,2997.1,2996.3,0.002]
[1769650775061,3.59525225,2996.9,2996.1,0.002]
[1769650775296,3.59525225,2996.7,2996.1,0.002]
[1769650775665,3.59525225,2996.7,2996.0,0.002]
[1769650776915,0.83422317,2996.8,2996.0,0.002]
[1769650777065,0.83422317,2996.8,2995.6,3.67537062]
[1769650777265,3.33689268,2996.9,2995.7,1.35560593]
[1769650777944,3.38676053,2996.9,2995.7,1.35560593]
[1769650778320,3.33689268,2996.9,2995.8,3.67537062]
[1769650780860,3.33689268,2996.9,2995.8,4.50986634]
[1769650782955,3.59525225,2997.0,2995.8,3.67537062]
[1769650783121,4.288435,2996.9,2995.9,0.50309758]
[1769650783451,4.288435,2996.9,2995.8,0.83450019]
[1769650784418,4.288435,2996.9,2995.8,4.50987081]
[1769650784620,3.59525225,2996.9,2995.8,4.50987081]
[1769650785154,0.83422317,2996.8,2995.8,4.50987081]
[1769650786353,0.83422317,2996.8,2996.0,0.002]
[1769650786742,0.001,2996.7,2996.0,0.002]
[1769650787126,0.001,2996.7,2995.8,4.51187081]
[1769650787327,0.001,2996.7,2995.9,4.46036857]
[1769650789333,0.001,2996.7,2996.1,3.67537062]
[1769650791232,0.001,2996.7,2996.1,4.50977906]
[1769650791756,0.001,2996.7,2995.9,0.78499795]
[1769650791757,3.59625225,2996.7,2995.9,0.78499795]
[1769650791944,3.59525225,2996.4,2995.8,0.002]
[1769650792127,3.59525225,2996.4,2995.3,0.83662796]
[1769650792748,3.59525225,2996.4,2995.4,0.83460953]
[1769650794163,0.83436238,2996.3,2995.3,0.83662007]
[1769650794355,0.83436238,2996.3,2995.4,0.78526548]
[1769650796364,0.83436238,2996.3,2995.4,1.61986837]
[1769650797846,0.83436238,2996.3,2995.4,0.78526548]
[1769650798046,4.62961777,2996.3,2995.3,0.002]
[1769650800256,0.83433453,2996.4,2995.3,4.05761453]
[1769650800461,0.001,2996.5,2995.5,4.05561453]
[1769650800644,0.001,2996.5,2995.6,0.48902276]
[1769650801681,3.79525539,2996.2,2995.3,0.002]
[1769650802666,0.83441807,2996.1,2995.3,0.002]
[1769650804176,0.83441807,2996.1,2995.3,4.05761453]
[1769650804376,0.83439981,2996.2,2995.3,4.05761453]
[1769650804592,0.001,2996.5,2995.5,4.05561453]
[1769650804886,0.001,2996.5,2995.7,4.05561453]
[1769650806001,0.001,2996.7,2995.8,4.05561453]
[1769650806700,0.001,2996.7,2995.5,4.05561453]
[1769650809823,0.001,2996.7,2995.6,0.83455735]
[1769650810322,3.79625539,2996.7,2995.6,0.83455735]
[1769650810521,3.79625539,2996.7,2995.7,0.8228479]
[1769650810825,3.79625539,2996.7,2996.0,0.002]
[1769650810990,0.001,2996.5,2996.0,0.002]
[1769650811189,3.79625539,2996.5,2996.0,0.002]
[1769650813610,0.83433453,2996.4,2996.0,0.002]
[1769650815891,0.001,2996.5,2996.0,0.002]
[1769650818826,0.83433453,2996.4,2996.0,0.002]
[1769650819499,0.83433453,2996.4,2995.3,0.002]
[1769650819500,3.79525539,2996.2,2995.3,0.002]
[1769650819714,0.83433453,2996.4,2995.0,0.002]
[1769650819715,3.79525539,2996.0,2995.0,0.002]
[1769650819893,3.79525539,2995.8,2995.0,0.002]
[1769650820090,3.79525539,2995.6,2995.0,0.002]
[1769650820895,4.6298406,2995.5,2995.0,0.002]
[1769650821117,4.6298406,2995.5,2994.6,0.002]
[1769650822323,4.6298406,2995.5,2994.3,0.83491767]
[1769650822521,4.6298406,2995.5,2994.4,0.83489051]
[1769650822722,4.6298406,2995.5,2994.4,0.41746673]
[1769650822723,4.59207353,2995.4,2994.4,0.41746673]
[1769650822923,0.83464093,2995.3,2994.8,0.002]
[1769650823529,0.43438017,2995.7,2994.8,0.002]
[1769650823530,0.38451232,2995.7,2994.8,0.002]
[1769650823729,3.33800654,2995.9,2994.8,0.002]
[1769650824023,3.79525539,2995.8,2994.8,0.002]
[1769650824800,7.13326193,2995.9,2994.8,0.002]
[1769650824998,0.42223482,2995.8,2994.8,0.002]
[1769650825402,4.71698002,2995.8,2994.8,0.002]
[1769650826021,0.42223482,2995.8,2994.8,3.95660569]
[1769650826232,0.83439022,2996.2,2994.8,3.95660569]
[1769650826606,4.2947452,2995.9,2994.8,0.002]
[1769650826805,4.77907436,2995.8,2994.8,0.002]
[1769650827036,4.2947452,2995.6,2994.8,0.002]
[1769650827343,4.2947452,2995.6,2994.5,0.002]
[1769650829422,0.83458521,2995.5,2994.5,0.002]
[1769650831820,4.99166966,2995.5,2994.5,0.002]
[1769650832117,0.83300105,2995.4,2994.5,0.002]
[1769650833434,4.9900855,2995.4,2994.5,0.002]
[1769650833633,4.15708445,2994.8,2993.4,0.002]
[1769650833832,4.15708445,2994.4,2993.4,0.002]
[1769650834046,4.99521164,2994.4,2993.4,0.002]
[1769650834638,4.15708445,2994.2,2993.4,0.002]
[1769650838733,0.83497545,2994.1,2993.4,0.002]
[1769650840762,0.83497545,2994.1,2993.4,4.14230105]
[1769650840953,0.83480816,2994.7,2993.4,4.14230105]
[1769650841154,0.83480816,2994.7,2993.6,4.14030105]
[1769650842465,0.83469667,2995.2,2993.6,4.14030105]
[1769650842763,0.001,2995.3,2993.9,0.83503123]
[1769650842963,0.83447378,2995.9,2994.2,4.14030105]
[1769650844067,0.83446138,2996.0,2994.2,4.14030105]
[1769650844375,0.83433453,2996.4,2994.4,4.14030105]
[1769650844538,0.83433453,2996.4,2994.6,4.14030105]
[1769650845045,3.33829144,2996.5,2994.8,4.14030105]
[1769650845366,3.33829144,2996.5,2994.8,4.83930105]
[1769650846664,0.001,2995.7,2994.8,4.83930105]
[1769650847775,0.001,2995.7,2995.0,4.14030105]
[1769650847972,0.001,2995.7,2995.2,4.14030105]
[1769650849160,0.001,2995.7,2995.1,0.49750535]
[1769650849538,0.001,2995.7,2994.8,5.67406235]
[1769650854669,0.001,2995.7,2994.9,4.14030105]
[1769650855357,0.001,2995.7,2995.0,0.83472454]
[1769650855666,0.001,2995.7,2995.1,4.13794398]
[1769650855874,0.001,2995.7,2995.2,4.63521083]
[1769650857262,0.001,2995.7,2995.2,0.49726685]
[1769650857466,0.001,2995.7,2995.0,0.83472454]
[1769650857681,0.001,2995.7,2994.9,4.63473349]
[1769650858970,0.001,2995.7,2995.0,0.002]
[1769650859272,0.001,2995.5,2995.0,0.002]
[1769650860036,0.001,2995.7,2995.0,4.13994398]
[1769650860261,0.001,2995.7,2995.2,4.13794398]
[1769650861268,0.001,2995.7,2995.1,0.87746775]
[1769650861650,0.001,2995.7,2995.2,0.8346688]
[1769650863376,0.001,2996.5,2995.2,4.97261278]
[1769650863679,4.89295297,2996.3,2995.2,0.8346688]
[1769650863847,4.89295297,2996.3,2995.3,0.47172401]
[1769650864048,0.83532763,2996.5,2995.3,4.60966799]
[1769650865376,4.89391822,2996.5,2995.3,4.60966799]
[1769650865551,4.89391822,2996.5,2995.4,0.54443368]
[1769650865757,4.89391822,2996.5,2995.5,0.699]
[1769650865957,4.89391822,2996.5,2995.4,0.54443368]
[1769650866156,4.89391822,2996.5,2995.3,2.00534649]
[1769650866677,4.89391822,2996.5,2995.4,0.83460737]
[1769650867490,4.89391822,2996.5,2995.3,0.47172401]
[1769650867668,4.89391822,2996.5,2995.2,0.83466056]
[1769650867985,4.89391822,2996.5,2995.4,0.83460762]
[1769650868286,4.89391822,2996.5,2995.1,4.67746775]
[1769650868287,4.89391822,2996.5,2995.2,0.8346688]
[1769650870980,4.89391822,2996.5,2995.5,0.002]
[1769650871189,4.05959059,2996.3,2995.2,0.8346688]
[1769650871387,4.05959059,2996.3,2995.3,0.9188865]
[1769650871554,4.05959059,2996.3,2995.3,0.9208865]
[1769650872074,0.001,2996.3,2995.4,0.83461307]
[1769650873473,4.05959059,2996.3,2995.3,1.75550685]
[1769650873676,4.54908241,2996.3,2995.3,0.9208865]
[1769650874067,4.54908241,2996.3,2995.3,1.7555237]
[1769650874462,4.89298081,2996.2,2995.3,1.7555237]
[1769650875161,4.89298081,2996.2,2995.3,0.002]
[1769650876252,4.89298081,2996.2,2995.3,0.83663772]
[1769650876484,4.89298081,2996.2,2995.3,0.002]
[1769650879585,0.83537883,2996.3,2995.3,0.002]
[1769650879790,0.83537883,2996.3,2995.3,0.4159944]
[1769650879994,0.001,2996.3,2995.3,4.55393838]
[1769650880469,4.05959059,2996.3,2995.3,1.25061398]
[1769650880675,4.05959059,2996.3,2995.3,1.53561958]
[1769650883002,4.05959059,2996.3,2995.3,5.67356356]
[1769650883364,0.001,2996.3,2995.5,0.002]
[1769650886097,0.001,2996.3,2995.3,5.67356356]
[1769650886398,0.001,2996.3,2995.4,5.01674634]
[1769650890104,0.001,2996.3,2995.5,0.83458521]
[1769650890701,0.001,2996.3,2995.5,5.18453396]
[1769650891287,0.001,2996.7,2995.8,4.34994875]
[1769650891492,0.001,2996.7,2995.7,0.04986785]
[1769650891493,4.29328604,2997.4,2996.0,4.34994875]
[1769650891672,0.83398312,2997.7,2996.2,4.34994875]
[1769650891673,4.45911596,2997.7,2996.2,4.34994875]
[1769650892076,4.45911596,2997.7,2996.4,4.34994875]
[1769650892287,5.29308892,2997.7,2996.4,4.34994875]
[1769650892501,5.29308892,2997.7,2996.5,0.51843111]
[1769650893808,4.45911596,2997.7,2996.5,4.86837986]
[1769650894214,4.45911596,2997.7,2996.6,5.18422759]
[1769650894415,5.29305088,2997.9,2996.6,5.18422759]
[1769650894595,5.29305088,2997.9,2996.7,5.25392616]
[1769650894780,5.29305088,2997.9,2996.7,0.90397741]
[1769650895319,0.001,2997.5,2996.7,0.90397741]
[1769650897320,0.001,2997.5,2996.8,0.83422317]
[1769650898017,0.001,2997.5,2996.8,5.18417192]
[1769650898317,0.001,2997.5,2996.9,5.99146268]
[1769650900620,0.001,2997.5,2997.0,0.8341675]
[1769650902134,0.001,2997.5,2996.9,0.83419216]
[1769650902427,0.001,2997.5,2996.9,1.53319216]
[1769650903331,4.42748472,2997.4,2995.7,3.33803392]
[1769650903636,4.42748472,2997.2,2995.8,0.83448439]
[1769650903858,4.42748472,2997.2,2995.9,0.83447239]
[1769650904703,4.42748472,2997.2,2996.0,0.83444217]
[1769650905414,4.42748472,2997.0,2995.9,0.83447378]
[1769650905636,4.42748472,2997.0,2995.9,2.68817367]
[1769650906647,4.42748472,2997.0,2996.1,0.002]
[1769650908058,5.26168005,2996.9,2996.1,0.002]
[1769650908262,5.26168005,2996.9,2996.1,0.27121737]
[1769650908467,5.26168005,2996.9,2996.1,0.002]
[1769650911421,5.26168005,2996.9,2995.9,0.002]
[1769650913758,5.26168005,2996.9,2995.5,0.002]
[1769650917363,4.17458237,2996.7,2995.5,0.002]
[1769650918348,4.17458237,2996.7,2995.5,4.51444816]
[1769650918553,4.17458237,2996.7,2995.6,0.45144482]
[1769650918753,4.17458237,2996.7,2995.7,0.002]
[1769650918933,4.17558237,2996.7,2995.7,0.002]
[1769650919439,4.17458237,2996.5,2995.7,0.002]
[1769650920267,0.83427884,2996.6,2995.7,4.51444816]
[1769650920460,0.83427884,2996.6,2995.8,0.53490043]
[1769650921067,3.33811539,2996.7,2995.9,5.21144816]
[1769650921068,0.8352559,2996.7,2995.9,5.21144816]
[1769650921278,0.001,2996.7,2995.9,5.21144816]
[1769650921432,4.17558237,2996.7,2996.0,0.57463486]
[1769650921633,4.17558237,2996.7,2995.7,0.701]
[1769650921848,4.17558237,2996.7,2995.7,0.002]
[1769650922050,4.17458237,2996.5,2995.5,0.002]
[1769650922445,4.17458237,2996.5,2995.5,0.83658151]
[1769650922645,0.41755824,2996.6,2995.5,4.51444816]
[1769650922851,0.001,2996.7,2995.5,4.51444816]
[1769650923067,0.001,2996.7,2995.8,0.83448789]
[1769650923366,0.001,2996.7,2995.9,0.8344584]
[1769650923669,0.001,2996.7,2995.7,3.33810674]
[1769650924032,0.001,2996.7,2995.7,0.83452949]
[1769650924235,4.17558237,2996.7,2995.5,0.002]
[1769650924837,4.17558237,2996.7,2995.5,0.83658353]
[1769650925037,4.17558237,2996.7,2995.6,0.83455179]
[1769650925367,4.17558237,2996.7,2995.5,0.83657015]
[1769650925554,4.17458237,2996.5,2995.5,0.002]
[1769650928094,0.83433453,2996.4,2995.5,0.002]
[1769650928386,5.0089169,2996.4,2995.5,0.002]
[1769650930602,0.83433453,2996.4,2995.5,0.002]
[1769650930760,0.83433453,2996.4,2995.7,0.002]
[1769650930959,0.83433453,2996.4,2995.5,0.002]
[1769650931189,0.001,2996.3,2995.5,0.53710891]
[1769650931895,0.001,2996.7,2995.6,4.51244816]
[1769650932094,5.00863855,2997.4,2995.8,4.51244816]
[1769650932301,5.00863855,2997.4,2995.9,1.15024482]
[1769650932513,5.00863855,2997.4,2996.0,0.83444592]
[1769650932812,5.00863855,2997.4,2996.1,0.699]
[1769650934293,4.17458237,2997.4,2996.1,0.699]
[1769650934590,0.001,2997.5,2996.3,4.51244816]
[1769650934793,0.001,2997.5,2996.4,5.64913261]
[1769650935602,0.001,2997.5,2996.6,4.51244816]
[1769650936466,0.001,2997.5,2996.7,0.834251]
[1769650936666,0.001,2997.5,2996.7,5.34669916]
[1769650936869,5.00940243,2998.3,2996.7,5.34669916]
[1769650936870,5.00939817,2998.3,2996.7,5.34669916]
[1769650937061,5.00939817,2998.3,2996.9,4.51244816]
[1769650937276,5.00939817,2998.3,2997.0,15.199]
[1769650938922,5.00939817,2998.3,2997.1,0.83413966]
[1769650939822,5.05926602,2998.3,2997.0,14.5]
[1769650940022,5.05926602,2998.3,2997.0,0.699]
[1769650940184,4.17458237,2998.1,2997.0,0.699]
[1769650941718,0.83388925,2998.0,2997.0,0.699]
[1769650942021,4.17458237,2997.9,2997.0,0.699]
[1769650942419,4.17458237,2997.9,2996.9,0.83419495]
[1769650942816,4.17458237,2997.9,2996.7,3.33698486]
[1769650942817,4.17458237,2997.9,2996.7,0.83423486]
[1769650943016,4.17458237,2997.7,2996.5,0.83428934]
[1769650943330,4.17458237,2997.7,2996.6,0.83427584]
[1769650943698,4.17458237,2997.5,2996.5,3.33721725]
[1769650943897,4.17458237,2997.5,2996.6,0.48705239]
[1769650945924,0.83405618,2997.4,2996.7,0.834251]
[1769650946595,0.83405618,2997.4,2996.6,1.32131093]
[1769650947240,5.49660159,2997.4,2996.6,1.32131093]
[1769650947618,5.49660159,2997.4,2996.6,0.48705239]
[1769650947817,5.49660159,2997.4,2996.7,1.49870524]
[1769650948965,5.49660159,2997.4,2996.7,2.33295441]
[1769650951147,5.49660159,2997.4,2996.7,1.49870524]
[1769650951749,5.49660159,2997.4,2996.6,0.48705239]
[1769650952445,5.49660159,2997.4,2996.1,0.8343983]
[1769650952653,5.49660159,2997.4,2996.0,0.699]
[1769650953037,5.49660159,2997.4,2996.0,1.53343828]
[1769650953440,5.49660159,2997.4,2996.0,0.699]
[1769650953640,4.80753769,2997.2,2996.0,1.93714443]
[1769650954540,4.80753769,2997.2,2996.2,0.002]
[1769650955252,4.80753769,2997.0,2996.2,0.002]
[1769650956679,4.80753769,2997.0,2996.0,0.002]
[1769650957357,4.80753769,2996.8,2996.0,0.002]
[1769650959367,5.64178627,2996.8,2996.0,0.002]
[1769650960400,0.83424858,2996.8,2996.0,0.002]
[1769650960904,0.83424858,2996.8,2996.0,0.46912577]
[1769650961204,5.64178627,2996.8,2996.0,0.46912577]
[1769650961506,5.64178627,2996.8,2996.0,0.002]
[1769650962596,0.83424858,2996.8,2996.0,0.002]
[1769650962902,5.64178627,2996.8,2996.0,0.002]
[1769650964571,0.83424858,2996.8,2996.0,0.002]
[1769650966212,0.83424858,2996.8,2996.2,0.002]
[1769650966381,5.64178627,2996.8,2996.0,0.002]
[1769650966582,1.73310604,2996.8,2996.0,0.002]
[1769650966783,4.80753769,2996.7,2996.0,0.002]
[1769650969824,0.83427884,2996.6,2996.0,0.002]
[1769650971203,5.64181653,2996.6,2996.0,0.002]
[1769650971428,5.64181653,2996.6,2995.7,1.53552572]
[1769650971728,5.64181653,2996.6,2995.8,0.95429828]
[1769650972229,5.64181653,2996.6,2995.8,1.78877474]
[1769650973231,5.64181653,2996.6,2995.8,0.95429828]
[1769650973819,5.64181653,2996.6,2995.7,0.83652586]
[1769650975435,5.64181653,2996.6,2995.7,0.002]
[1769650978106,5.64181653,2996.6,2995.9,0.002]
[1769650978405,0.001,2996.4,2995.7,0.002]
[1769650979535,0.001,2996.4,2995.7,4.83989113]
[1769650979731,0.001,2996.4,2995.8,1.47203527]
[1769650980131,0.001,2996.4,2995.9,4.83789113]
[1769650980537,0.001,2996.8,2995.9,4.83789113]
[1769650981105,0.83522409,2996.8,2995.9,4.83789113]
[1769650981737,0.001,2996.8,2996.0,5.67233705]
[1769650981908,0.001,2996.8,2996.1,0.90101895]
[1769650982329,0.001,2996.8,2996.1,5.73891008]
[1769650983537,4.69640411,2996.7,2996.1,0.90101895]
[1769650983746,0.83427884,2996.6,2996.1,0.90101895]
[1769650983931,0.83427884,2996.6,2995.9,0.699]
[1769650983932,0.83427884,2996.6,2995.9,1.53347301]
[1769650984406,5.53066695,2996.7,2995.9,1.53347301]
[1769650985029,5.53066695,2996.7,2996.0,0.83444229]
[1769650986253,4.69640411,2996.7,2996.0,0.83444229]
[1769650986758,5.53065524,2996.7,2995.9,1.5334527]
[1769650987050,5.53065524,2996.7,2996.0,0.55089784]
[1769650987750,4.69640411,2996.7,2996.0,0.55089784]
[1769650988443,5.53065748,2996.7,2996.0,1.3853346]
[1769650989342,0.001,2996.8,2996.0,6.22322573]
[1769650989540,0.001,2996.8,2996.1,1.02601201]
[1769650989712,0.001,2996.8,2996.1,5.86390314]
[1769650990824,0.001,2996.8,2996.2,0.83639022]
[1769650991012,0.001,2996.5,2996.2,0.83639022]
[1769650991946,0.001,2996.5,2996.2,5.67428135]
[1769650992150,0.001,2996.8,2996.3,1.00379422]
[1769650992318,0.001,2996.8,2996.3,5.84168535]
[1769650992940,0.001,2996.8,2996.4,0.83433453]
[1769650993744,0.001,2996.8,2996.4,5.67222566]
[1769650994053,0.001,2996.8,2996.5,0.699]
[1769650994247,0.001,2996.8,2996.6,0.63712257]
[1769650995053,0.001,2996.8,2996.7,0.834251]
[1769650995257,0.001,2996.8,2996.6,1.47138096]
[1769650995427,0.001,2996.8,2996.6,6.30927209]
[1769650995628,10.86157418,2997.5,2996.6,6.30927209]
[1769650995936,10.86157418,2997.5,2996.7,0.44080836]
[1769650995937,4.69540513,2997.5,2996.7,0.44080836]
[1769650996548,5.52945286,2997.5,2996.7,0.44080836]
[1769650997418,5.52945286,2997.5,2996.6,1.47138466]
[1769650997851,6.02324882,2997.4,2996.6,0.63712257]
[1769650998050,4.69640411,2997.0,2996.2,0.002]
[1769650998234,4.69640411,2997.0,2996.2,0.83039013]
[1769650998764,4.69640411,2997.0,2996.1,1.53339671]
[1769650999276,5.53059154,2997.0,2996.2,0.83436963]
[1769650999419,4.69640411,2996.9,2996.2,0.83436963]
[1769650999621,0.83409741,2997.3,2996.2,5.67226076]
[1769650999926,5.53047844,2997.4,2996.2,5.67226076]
[1769651003977,5.53047844,2997.4,2996.2,5.67426076]
[1769651004158,0.001,2997.2,2996.2,5.67426076]
[1769651004457,0.001,2997.2,2996.3,0.97108489]
[1769651004783,0.001,2997.2,2996.3,5.80897602]
[1769651005582,0.001,2997.2,2996.4,4.9707455]
[1769651006384,0.001,2997.2,2996.6,4.9707455]
[1769651007056,0.001,2997.9,2997.1,4.9707455]
[1769651007308,13.54475357,2998.8,2997.6,4.9707455]
[1769651007309,4.94670011,2998.8,2997.6,4.9707455]
[1769651007589,5.78031131,2999.0,2997.8,11.04386217]
[1769651007781,4.94670011,2999.0,2997.9,0.699]
[1769651008182,4.94670011,2999.0,2998.0,0.83388925]
[1769651009779,5.78032128,2999.0,2998.0,0.83388925]
[1769651009983,5.78032128,2999.0,2998.1,0.98391918]
[1769651010453,5.78032128,2999.0,2997.8,0.83391952]
[1769651010656,5.78032128,2999.0,2998.0,0.699]
[1769651011378,5.78032128,2999.0,2997.3,4.68857063]
[1769651011580,5.78032128,2999.0,2997.5,0.83401299]
[1769651011887,5.78032128,2999.0,2997.8,0.833943]
[1769651012099,4.92375325,2998.8,2997.7,0.83395495]
[1769651012261,4.92375325,2998.8,2997.8,0.83393838]
[1769651012458,0.8336946,2998.7,2997.5,0.83402835]
[1769651012663,5.75744785,2998.7,2997.5,5.52259898]
[1769651012892,5.75744785,2998.7,2997.6,0.95577124]
[1769651014692,5.75744785,2998.7,2997.7,0.83397271]
[1769651015593,0.001,2998.5,2997.7,0.83397271]
[1769651016768,4.92475325,2998.5,2997.6,1.65477124]
[1769651016969,4.92475325,2998.5,2997.6,1.53299938]
[1769651017292,4.92475325,2998.5,2997.6,0.83399938]
[1769651019168,4.92475325,2998.5,2996.7,3.84986785]
[1769651019169,4.92375325,2998.3,2997.2,0.83409815]
[1769651019373,4.92375325,2998.3,2996.8,3.3368125]
[1769651019589,4.92375325,2998.3,2997.1,0.83412773]
[1769651019900,0.83377801,2998.4,2997.1,0.83412773]
[1769651019901,4.92375325,2998.1,2997.1,0.83413851]
[1769651020600,4.92375325,2998.1,2997.1,0.83412008]
[1769651021392,4.92375325,2997.9,2996.7,0.834251]
[1769651022907,0.83387582,2998.1,2996.7,5.57268948]